[Event "Titled Tuesday Blitz May 4 2021"]
[White "Mikhalsky, Vladimir"]
[Black "Abdyzhapar, Asylbek"]
[WhiteFideId "14144352"]
[BlackFideId "13800337"]
[WhiteElo "2280"]
[BlackElo "2383"]
[Result "1-0"]
[Round "04"]
[TimeControl "180+1"]
[Date "2021.05.04"]
[WhiteClock "0:00:28"]
[BlackClock "0:00:44"]

1. e4 {[%clk 0:02:58]}  c6 {[%clk 0:02:59]} 2. Nc3 {[%clk 0:02:51]}  d5 {[%clk 0:02:58]} 3. Nf3 {[%clk 0:02:51]}  Bg4 {[%clk 0:02:57]} 4. h3 {[%clk 0:02:49]}  Bh5 {[%clk 0:02:57]} 5. exd5 {[%clk 0:02:44]}  cxd5 {[%clk 0:02:56]} 6. Bb5+ {[%clk 0:02:40]}  Nc6 {[%clk 0:02:56]} 7. g4 {[%clk 0:02:40]}  Bg6 {[%clk 0:02:56]} 8. Ne5 {[%clk 0:02:40]}  Rc8 {[%clk 0:02:56]} 9. Qf3 {[%clk 0:02:36]}  e6 {[%clk 0:02:53]} 10. d4 {[%clk 0:02:28]}  f6 {[%clk 0:02:53]} 11. Nxg6 {[%clk 0:02:26]}  hxg6 {[%clk 0:02:53]} 12. Ne2 {[%clk 0:02:15]}  Kf7 {[%clk 0:02:53]} 13. c3 {[%clk 0:02:12]}  Bd6 {[%clk 0:02:52]} 14. Nf4 {[%clk 0:02:03]}  Nge7 {[%clk 0:02:52]} 15. Bd3 {[%clk 0:02:01]}  g5 {[%clk 0:02:50]} 16. Nh5 {[%clk 0:02:00]}  a6 {[%clk 0:02:45]} 17. Bxg5 {[%clk 0:01:58]}  Rxh5 {[%clk 0:02:33]} 18. gxh5 {[%clk 0:01:57]}  Qb6 {[%clk 0:02:29]} 19. b4 {[%clk 0:01:46]}  Nxb4 {[%clk 0:02:19]} 20. cxb4 {[%clk 0:01:45]}  Qxb4+ {[%clk 0:02:16]} 21. Bd2 {[%clk 0:01:44]}  Qxd4 {[%clk 0:02:15]} 22. Rc1 {[%clk 0:01:33]}  Nc6 {[%clk 0:02:11]} 23. Qe3 {[%clk 0:01:24]}  Qh4 {[%clk 0:02:02]} 24. Bg6+ {[%clk 0:01:23]}  Ke7 {[%clk 0:02:01]} 25. Bf5 {[%clk 0:01:18]}  Be5 {[%clk 0:01:50]} 26. Bg4 {[%clk 0:01:09]}  d4 {[%clk 0:01:36]} 27. Qa3+ {[%clk 0:01:06]}  Kf7 {[%clk 0:01:35]} 28. Qb3 {[%clk 0:01:05]}  Re8 {[%clk 0:01:25]} 29. Qxb7+ {[%clk 0:01:02]}  Ne7 {[%clk 0:01:25]} 30. Rc6 {[%clk 0:00:59]}  f5 {[%clk 0:01:25]} 31. Bf3 {[%clk 0:00:53]}  Rb8 {[%clk 0:01:24]} 32. Qxa6 {[%clk 0:00:43]}  Rb1+ {[%clk 0:01:10]} 33. Rc1 {[%clk 0:00:41]}  Rb2 {[%clk 0:01:07]} 34. Qd3 {[%clk 0:00:34]}  Bf4 {[%clk 0:01:03]} 35. Bxf4 {[%clk 0:00:30]}  Qxf4 {[%clk 0:01:03]} 36. O-O {[%clk 0:00:30]}  e5 {[%clk 0:00:59]} 37. Bg2 {[%clk 0:00:29]}  Rd2 {[%clk 0:00:55]} 38. Qg3 {[%clk 0:00:28]}  Qh6 {[%clk 0:00:44]} 39. Qxe5 {[%clk 0:00:28]} 1-0


[Site "https://www.chess.com"]

[Event "Titled Tuesday Blitz May 4 2021"]
[White "Mirzoev, Azer"]
[Black "Rytenko, Vsevolod"]
[WhiteFideId "13400304"]
[BlackFideId "14133040"]
[WhiteElo "2525"]
[BlackElo "2228"]
[Result "0-1"]
[Round "04"]
[TimeControl "180+1"]
[Date "2021.05.04"]
[WhiteClock "0:00:36"]
[BlackClock "0:00:10"]

1. e4 {[%clk 0:02:59]}  e6 {[%clk 0:03:00]} 2. d4 {[%clk 0:02:57]}  d5 {[%clk 0:03:01]} 3. Nc3 {[%clk 0:02:58]}  Bb4 {[%clk 0:03:00]} 4. exd5 {[%clk 0:02:58]}  exd5 {[%clk 0:03:00]} 5. Bd3 {[%clk 0:02:57]}  Nf6 {[%clk 0:03:00]} 6. Ne2 {[%clk 0:02:57]}  O-O {[%clk 0:03:00]} 7. Bg5 {[%clk 0:02:57]}  c6 {[%clk 0:03:00]} 8. O-O {[%clk 0:02:51]}  h6 {[%clk 0:03:00]} 9. Bh4 {[%clk 0:02:50]}  Re8 {[%clk 0:02:55]} 10. a3 {[%clk 0:02:49]}  Bd6 {[%clk 0:02:55]} 11. f3 {[%clk 0:02:43]}  Qc7 {[%clk 0:02:51]} 12. h3 {[%clk 0:02:37]}  g5 {[%clk 0:02:46]} 13. Bf2 {[%clk 0:02:36]}  Nbd7 {[%clk 0:02:32]} 14. Qd2 {[%clk 0:02:34]}  Nf8 {[%clk 0:02:32]} 15. Rae1 {[%clk 0:02:31]}  Bd7 {[%clk 0:02:30]} 16. Nd1 {[%clk 0:02:27]}  Ne6 {[%clk 0:02:15]} 17. c3 {[%clk 0:02:25]}  Nf4 {[%clk 0:02:13]} 18. Nxf4 {[%clk 0:02:22]}  Bxf4 {[%clk 0:02:14]} 19. Qc2 {[%clk 0:02:22]}  Nh5 {[%clk 0:02:12]} 20. Rxe8+ {[%clk 0:02:12]}  Rxe8 {[%clk 0:02:10]} 21. Re1 {[%clk 0:02:12]}  Bh2+ {[%clk 0:01:57]} 22. Kh1 {[%clk 0:02:02]}  Bg3 {[%clk 0:01:43]} 23. Rxe8+ {[%clk 0:02:00]}  Bxe8 {[%clk 0:01:42]} 24. Kg1 {[%clk 0:02:00]}  Bh2+ {[%clk 0:01:36]} 25. Kf1 {[%clk 0:01:53]}  Bg3 {[%clk 0:01:12]} 26. Ne3 {[%clk 0:01:48]}  Bd7 {[%clk 0:01:10]} 27. Ng4 {[%clk 0:01:39]}  Bxg4 {[%clk 0:00:58]} 28. hxg4 {[%clk 0:01:36]}  Bxf2 {[%clk 0:00:57]} 29. Kxf2 {[%clk 0:01:36]}  Qg3+ {[%clk 0:00:55]} 30. Kf1 {[%clk 0:01:14]}  Nf4 {[%clk 0:00:55]} 31. Bf5 {[%clk 0:01:14]}  Qh2 {[%clk 0:00:49]} 32. Qf2 {[%clk 0:01:12]}  b6 {[%clk 0:00:32]} 33. a4 {[%clk 0:01:08]}  c5 {[%clk 0:00:29]} 34. Qg1 {[%clk 0:00:57]}  Qxg1+ {[%clk 0:00:24]} 35. Kxg1 {[%clk 0:00:56]}  cxd4 {[%clk 0:00:25]} 36. Kf2 {[%clk 0:00:57]}  dxc3 {[%clk 0:00:24]} 37. bxc3 {[%clk 0:00:57]}  Kf8 {[%clk 0:00:24]} 38. g3 {[%clk 0:00:55]}  Ne6 {[%clk 0:00:24]} 39. Ke3 {[%clk 0:00:55]}  Ke7 {[%clk 0:00:24]} 40. Bc2 {[%clk 0:00:54]}  Kd6 {[%clk 0:00:25]} 41. Bb3 {[%clk 0:00:52]}  a5 {[%clk 0:00:25]} 42. Bc2 {[%clk 0:00:52]}  Kc5 {[%clk 0:00:20]} 43. f4 {[%clk 0:00:47]}  f6 {[%clk 0:00:20]} 44. Bd1 {[%clk 0:00:44]}  Kc4 {[%clk 0:00:18]} 45. Kd2 {[%clk 0:00:39]}  gxf4 {[%clk 0:00:18]} 46. gxf4 {[%clk 0:00:38]}  Nxf4 {[%clk 0:00:19]} 47. Ke3 {[%clk 0:00:36]}  Ne6 {[%clk 0:00:18]} 48. Bf3 {[%clk 0:00:36]}  Nc5 {[%clk 0:00:16]} 49. Kf4 {[%clk 0:00:36]}  Nxa4 {[%clk 0:00:14]} 50. Kf5 {[%clk 0:00:36]}  Nxc3 {[%clk 0:00:13]} 51. Kxf6 {[%clk 0:00:36]}  a4 {[%clk 0:00:14]} 52. Kg6 {[%clk 0:00:35]}  a3 {[%clk 0:00:14]} 53. Kxh6 {[%clk 0:00:35]}  a2 {[%clk 0:00:14]} 54. g5 {[%clk 0:00:36]}  a1=Q {[%clk 0:00:14]} 55. g6 {[%clk 0:00:36]}  Qc1+ {[%clk 0:00:11]} 56. Kh7 {[%clk 0:00:35]}  Qf4 {[%clk 0:00:10]} 57. Bh5 {[%clk 0:00:35]}  Ne4 {[%clk 0:00:10]} 58. g7 {[%clk 0:00:35]}  Nf6+ {[%clk 0:00:10]} 59. Kg6 {[%clk 0:00:35]}  Nxh5 {[%clk 0:00:09]} 60. g8=Q {[%clk 0:00:35]}  Qg4+ {[%clk 0:00:09]} 61. Kf7 {[%clk 0:00:35]}  Qxg8+ {[%clk 0:00:09]} 62. Kxg8 {[%clk 0:00:35]}  d4 {[%clk 0:00:10]} 63. Kf7 {[%clk 0:00:35]}  d3 {[%clk 0:00:10]} 64. Kg6 {[%clk 0:00:35]}  d2 {[%clk 0:00:10]} 65. Kxh5 {[%clk 0:00:36]}  d1=Q+ {[%clk 0:00:10]} 66. Kg6 {[%clk 0:00:36]}  Qf3 {[%clk 0:00:10]} 0-1


[Site "https://www.chess.com"]

[Event "Titled Tuesday Blitz May 4 2021"]
[White "Mohandesi, Shahin"]
[Black "Hernandez Jimenez, Alexander Andres"]
[WhiteFideId "12501247"]
[BlackFideId "3900452"]
[WhiteElo "1993"]
[BlackElo "2151"]
[Result "1-0"]
[Round "04"]
[TimeControl "180+1"]
[Date "2021.05.04"]
[WhiteClock "0:00:50"]
[BlackClock "0:00:13"]

1. d4 {[%clk 0:03:00]}  Nf6 {[%clk 0:02:59]} 2. c4 {[%clk 0:02:59]}  e6 {[%clk 0:02:59]} 3. g3 {[%clk 0:02:59]}  Bb4+ {[%clk 0:02:43]} 4. Bd2 {[%clk 0:02:58]}  Qe7 {[%clk 0:02:41]} 5. Bg2 {[%clk 0:02:58]}  O-O {[%clk 0:02:38]} 6. e3 {[%clk 0:02:58]}  Bxd2+ {[%clk 0:02:36]} 7. Nxd2 {[%clk 0:02:58]}  d6 {[%clk 0:02:35]} 8. Ne2 {[%clk 0:02:58]}  Nbd7 {[%clk 0:02:35]} 9. O-O {[%clk 0:02:58]}  e5 {[%clk 0:02:35]} 10. b4 {[%clk 0:02:55]}  a5 {[%clk 0:02:34]} 11. a3 {[%clk 0:02:55]}  Re8 {[%clk 0:02:30]} 12. bxa5 {[%clk 0:02:48]}  Rxa5 {[%clk 0:02:28]} 13. a4 {[%clk 0:02:49]}  Nf8 {[%clk 0:02:18]} 14. Nb3 {[%clk 0:02:49]}  Ra7 {[%clk 0:02:15]} 15. a5 {[%clk 0:02:47]}  e4 {[%clk 0:02:11]} 16. h3 {[%clk 0:02:32]}  Bd7 {[%clk 0:02:07]} 17. d5 {[%clk 0:02:29]}  Rea8 {[%clk 0:02:03]} 18. Ned4 {[%clk 0:02:28]}  Ng6 {[%clk 0:01:59]} 19. Qd2 {[%clk 0:02:25]}  Ne5 {[%clk 0:01:56]} 20. Qb4 {[%clk 0:02:24]}  Nf3+ {[%clk 0:01:53]} 21. Kh1 {[%clk 0:02:18]}  Ng5 {[%clk 0:01:48]} 22. h4 {[%clk 0:02:16]}  Ng4 {[%clk 0:01:32]} 23. hxg5 {[%clk 0:01:56]}  Qxg5 {[%clk 0:01:31]} 24. Kg1 {[%clk 0:01:55]}  Qh5 {[%clk 0:01:23]} 25. Rfc1 {[%clk 0:01:45]}  Qh2+ {[%clk 0:01:11]} 26. Kf1 {[%clk 0:01:44]}  Re8 {[%clk 0:00:59]} 27. Nb5 {[%clk 0:01:39]}  Bxb5 {[%clk 0:00:48]} 28. cxb5 {[%clk 0:01:39]}  Re5 {[%clk 0:00:43]} 29. Rxc7 {[%clk 0:01:35]}  Ra8 {[%clk 0:00:43]} 30. Rac1 {[%clk 0:01:31]}  g6 {[%clk 0:00:36]} 31. Nd4 {[%clk 0:01:13]}  Rae8 {[%clk 0:00:25]} 32. a6 {[%clk 0:01:04]}  Nxe3+ {[%clk 0:00:21]} 33. fxe3 {[%clk 0:01:03]}  Qxg3 {[%clk 0:00:22]} 34. Qd2 {[%clk 0:00:53]}  Rxd5 {[%clk 0:00:13]} 35. axb7 {[%clk 0:00:50]} 1-0


[Site "https://www.chess.com"]

[Event "Titled Tuesday Blitz May 4 2021"]
[White "Moultino06"]
[Black "Crevatin, Leo"]
[BlackFideId "1726307"]
[WhiteElo "2685"]
[BlackElo "2509"]
[Result "1-0"]
[Round "04"]
[TimeControl "180+1"]
[Date "2021.05.04"]
[WhiteClock "0:00:51"]
[BlackClock "0:00:12"]

1. e4 {[%clk 0:03:00]}  c6 {[%clk 0:02:59]} 2. Nf3 {[%clk 0:02:59]}  d5 {[%clk 0:03:00]} 3. d3 {[%clk 0:02:59]}  Bg4 {[%clk 0:02:58]} 4. h3 {[%clk 0:02:57]}  Bh5 {[%clk 0:02:56]} 5. Nbd2 {[%clk 0:02:56]}  Nf6 {[%clk 0:02:55]} 6. e5 {[%clk 0:02:49]}  Nfd7 {[%clk 0:02:54]} 7. d4 {[%clk 0:02:49]}  e6 {[%clk 0:02:54]} 8. c3 {[%clk 0:02:47]}  c5 {[%clk 0:02:54]} 9. Bb5 {[%clk 0:02:45]}  Nc6 {[%clk 0:02:53]} 10. g4 {[%clk 0:02:41]}  Bg6 {[%clk 0:02:53]} 11. O-O {[%clk 0:02:41]}  Qb6 {[%clk 0:02:51]} 12. a4 {[%clk 0:02:30]}  Be7 {[%clk 0:02:42]} 13. dxc5 {[%clk 0:02:23]}  Nxc5 {[%clk 0:02:32]} 14. b4 {[%clk 0:02:23]}  Ne4 {[%clk 0:02:27]} 15. Nxe4 {[%clk 0:02:20]}  Bxe4 {[%clk 0:02:28]} 16. Be3 {[%clk 0:02:19]}  Qc7 {[%clk 0:02:26]} 17. Nd4 {[%clk 0:02:15]}  O-O {[%clk 0:02:23]} 18. Bxc6 {[%clk 0:02:11]}  bxc6 {[%clk 0:02:18]} 19. f3 {[%clk 0:02:00]}  Bg6 {[%clk 0:02:15]} 20. Qd2 {[%clk 0:02:01]}  a6 {[%clk 0:01:53]} 21. f4 {[%clk 0:01:51]}  Be4 {[%clk 0:01:50]} 22. Nb3 {[%clk 0:01:49]}  f6 {[%clk 0:01:42]} 23. Nc5 {[%clk 0:01:49]}  Bxc5 {[%clk 0:01:37]} 24. Bxc5 {[%clk 0:01:49]}  fxe5 {[%clk 0:01:36]} 25. Bxf8 {[%clk 0:01:44]}  Rxf8 {[%clk 0:01:35]} 26. fxe5 {[%clk 0:01:45]}  Rxf1+ {[%clk 0:01:30]} 27. Rxf1 {[%clk 0:01:46]}  Qxe5 {[%clk 0:01:31]} 28. Qf4 {[%clk 0:01:43]}  Qxf4 {[%clk 0:01:22]} 29. Rxf4 {[%clk 0:01:44]}  Bc2 {[%clk 0:01:21]} 30. a5 {[%clk 0:01:29]}  e5 {[%clk 0:01:15]} 31. Rf3 {[%clk 0:01:30]}  Bb3 {[%clk 0:01:08]} 32. Rf5 {[%clk 0:01:26]}  e4 {[%clk 0:01:06]} 33. Kf2 {[%clk 0:01:26]}  Bc4 {[%clk 0:00:45]} 34. Ke3 {[%clk 0:01:25]}  Bb5 {[%clk 0:00:45]} 35. Kd4 {[%clk 0:01:24]}  g6 {[%clk 0:00:45]} 36. Rf6 {[%clk 0:01:24]}  Kg7 {[%clk 0:00:45]} 37. g5 {[%clk 0:01:23]}  Kg8 {[%clk 0:00:42]} 38. h4 {[%clk 0:01:21]}  Kg7 {[%clk 0:00:41]} 39. Re6 {[%clk 0:01:09]}  Kf7 {[%clk 0:00:39]} 40. Re5 {[%clk 0:01:09]}  Kf8 {[%clk 0:00:35]} 41. Kc5 {[%clk 0:01:08]}  Kf7 {[%clk 0:00:34]} 42. Kd6 {[%clk 0:01:08]}  Kf8 {[%clk 0:00:30]} 43. Ke6 {[%clk 0:01:06]}  Kg7 {[%clk 0:00:26]} 44. Ke7 {[%clk 0:01:02]}  Bc4 {[%clk 0:00:21]} 45. Kd6 {[%clk 0:00:59]}  Bb5 {[%clk 0:00:21]} 46. Re7+ {[%clk 0:00:57]}  Kg8 {[%clk 0:00:21]} 47. Ke6 {[%clk 0:00:54]}  e3 {[%clk 0:00:18]} 48. Kf6 {[%clk 0:00:55]}  c5 {[%clk 0:00:14]} 49. bxc5 {[%clk 0:00:52]}  e2 {[%clk 0:00:13]} 50. c6 {[%clk 0:00:52]}  Bxc6 {[%clk 0:00:13]} 51. Rxe2 {[%clk 0:00:52]}  Bb5 {[%clk 0:00:14]} 52. Re7 {[%clk 0:00:52]}  Bc4 {[%clk 0:00:12]} 53. Rg7+ {[%clk 0:00:51]} 1-0


[Site "https://www.chess.com"]

[Event "Titled Tuesday Blitz May 4 2021"]
[White "Najdin, Danil"]
[Black "Minaya, Juan"]
[WhiteFideId "4172426"]
[BlackFideId "4400283"]
[WhiteElo "2193"]
[BlackElo "1850"]
[Result "1-0"]
[Round "04"]
[TimeControl "180+1"]
[Date "2021.05.04"]
[WhiteClock "0:00:51"]
[BlackClock "0:00:58"]

1. e4 {[%clk 0:03:00]}  e6 {[%clk 0:02:56]} 2. d4 {[%clk 0:02:59]}  c5 {[%clk 0:02:54]} 3. Nf3 {[%clk 0:02:56]}  cxd4 {[%clk 0:02:52]} 4. Nxd4 {[%clk 0:02:56]}  Nc6 {[%clk 0:02:51]} 5. Nxc6 {[%clk 0:02:54]}  bxc6 {[%clk 0:02:49]} 6. Bd3 {[%clk 0:02:55]}  d5 {[%clk 0:02:46]} 7. Nd2 {[%clk 0:02:54]}  Nf6 {[%clk 0:02:44]} 8. O-O {[%clk 0:02:54]}  Bc5 {[%clk 0:02:39]} 9. b3 {[%clk 0:02:42]}  Bd4 {[%clk 0:02:37]} 10. Rb1 {[%clk 0:02:42]}  a5 {[%clk 0:02:35]} 11. Ba3 {[%clk 0:02:37]}  a4 {[%clk 0:02:30]} 12. exd5 {[%clk 0:02:08]}  cxd5 {[%clk 0:02:27]} 13. Nf3 {[%clk 0:02:01]}  Bb6 {[%clk 0:02:17]} 14. Ne5 {[%clk 0:01:54]}  axb3 {[%clk 0:02:12]} 15. Bb5+ {[%clk 0:01:53]}  Bd7 {[%clk 0:02:06]} 16. Nxd7 {[%clk 0:01:49]}  Nxd7 {[%clk 0:02:04]} 17. Rxb3 {[%clk 0:01:49]}  f6 {[%clk 0:01:42]} 18. Qg4 {[%clk 0:01:47]}  Kf7 {[%clk 0:01:38]} 19. Bxd7 {[%clk 0:01:13]}  Qxd7 {[%clk 0:01:35]} 20. Rxb6 {[%clk 0:01:14]}  Rxa3 {[%clk 0:01:31]} 21. Rfb1 {[%clk 0:01:12]}  Ra7 {[%clk 0:01:21]} 22. a4 {[%clk 0:01:06]}  Rc8 {[%clk 0:01:17]} 23. a5 {[%clk 0:01:00]}  Rc6 {[%clk 0:01:08]} 24. Qh5+ {[%clk 0:00:52]}  Kg8 {[%clk 0:00:58]} 25. Rxc6 {[%clk 0:00:51]} 1-0


[Site "https://www.chess.com"]

[Event "Titled Tuesday Blitz May 4 2021"]
[White "Napoli, Nicolo"]
[Black "Jaskolka, Tomasz"]
[WhiteFideId "813702"]
[BlackFideId "1170791"]
[WhiteElo "2330"]
[BlackElo "2050"]
[Result "1-0"]
[Round "04"]
[TimeControl "180+1"]
[Date "2021.05.04"]
[WhiteClock "0:01:06"]
[BlackClock "0:00:10"]

1. e4 {[%clk 0:03:00]}  e6 {[%clk 0:02:57]} 2. Qe2 {[%clk 0:03:00]}  e5 {[%clk 0:02:56]} 3. Nf3 {[%clk 0:02:58]}  Nc6 {[%clk 0:02:55]} 4. g3 {[%clk 0:02:50]}  Nf6 {[%clk 0:02:53]} 5. Bg2 {[%clk 0:02:49]}  Bc5 {[%clk 0:02:52]} 6. O-O {[%clk 0:02:44]}  d6 {[%clk 0:02:52]} 7. c3 {[%clk 0:02:43]}  O-O {[%clk 0:02:47]} 8. Rd1 {[%clk 0:02:38]}  Bg4 {[%clk 0:02:42]} 9. h3 {[%clk 0:02:38]}  Bxf3 {[%clk 0:02:41]} 10. Qxf3 {[%clk 0:02:36]}  Qd7 {[%clk 0:02:38]} 11. d3 {[%clk 0:02:34]}  a5 {[%clk 0:02:36]} 12. Bg5 {[%clk 0:02:22]}  Ne8 {[%clk 0:02:29]} 13. Nd2 {[%clk 0:02:20]}  f6 {[%clk 0:02:24]} 14. Be3 {[%clk 0:02:18]}  b5 {[%clk 0:02:12]} 15. Nf1 {[%clk 0:02:11]}  a4 {[%clk 0:01:48]} 16. d4 {[%clk 0:01:56]}  Bb6 {[%clk 0:01:46]} 17. Kh2 {[%clk 0:01:45]}  Na5 {[%clk 0:01:22]} 18. h4 {[%clk 0:01:38]}  Nc4 {[%clk 0:01:18]} 19. Bh3 {[%clk 0:01:35]}  Qe7 {[%clk 0:01:12]} 20. b3 {[%clk 0:01:20]}  axb3 {[%clk 0:00:55]} 21. axb3 {[%clk 0:01:21]}  Na5 {[%clk 0:00:55]} 22. b4 {[%clk 0:01:13]}  Nc4 {[%clk 0:00:54]} 23. Rxa8 {[%clk 0:01:11]}  exd4 {[%clk 0:00:10]} 24. Bxd4 {[%clk 0:01:06]} 1-0


[Site "https://www.chess.com"]

[Event "Titled Tuesday Blitz May 4 2021"]
[White "Nitin, S."]
[Black "Howell, David W L"]
[WhiteFideId "5018277"]
[BlackFideId "410608"]
[WhiteElo "2568"]
[BlackElo "2973"]
[Result "0-1"]
[Round "04"]
[TimeControl "180+1"]
[Date "2021.05.04"]
[WhiteClock "0:00:03"]
[BlackClock "0:00:07"]

1. e4 {[%clk 0:03:00]}  d5 {[%clk 0:02:57]} 2. exd5 {[%clk 0:03:00]}  Qxd5 {[%clk 0:02:58]} 3. Nc3 {[%clk 0:02:59]}  Qd6 {[%clk 0:02:57]} 4. d4 {[%clk 0:02:59]}  a6 {[%clk 0:02:57]} 5. Bd3 {[%clk 0:02:59]}  Nf6 {[%clk 0:02:56]} 6. Nge2 {[%clk 0:02:59]}  b5 {[%clk 0:02:57]} 7. Bf4 {[%clk 0:02:59]}  Qd8 {[%clk 0:02:51]} 8. Qd2 {[%clk 0:02:55]}  Bb7 {[%clk 0:02:51]} 9. f3 {[%clk 0:02:54]}  Nbd7 {[%clk 0:02:50]} 10. Ne4 {[%clk 0:02:47]}  e6 {[%clk 0:02:47]} 11. O-O-O {[%clk 0:02:45]}  Be7 {[%clk 0:02:47]} 12. h4 {[%clk 0:02:44]}  Nb6 {[%clk 0:02:32]} 13. Kb1 {[%clk 0:02:41]}  Nc4 {[%clk 0:02:28]} 14. Bxc4 {[%clk 0:02:35]}  bxc4 {[%clk 0:02:29]} 15. Nxf6+ {[%clk 0:02:35]}  gxf6 {[%clk 0:02:26]} 16. Qe3 {[%clk 0:02:30]}  Rb8 {[%clk 0:02:21]} 17. Nc3 {[%clk 0:02:26]}  Bd5 {[%clk 0:02:16]} 18. Ka1 {[%clk 0:02:25]}  Rb7 {[%clk 0:02:11]} 19. Rhe1 {[%clk 0:02:22]}  c6 {[%clk 0:02:06]} 20. g4 {[%clk 0:02:19]}  Qa5 {[%clk 0:01:55]} 21. Re2 {[%clk 0:02:04]}  Kd7 {[%clk 0:01:49]} 22. Nxd5 {[%clk 0:01:40]}  cxd5 {[%clk 0:01:44]} 23. Qd2 {[%clk 0:01:33]}  Bb4 {[%clk 0:01:19]} 24. c3 {[%clk 0:01:32]}  Be7 {[%clk 0:01:20]} 25. Qc2 {[%clk 0:01:32]}  Rb5 {[%clk 0:01:13]} 26. h5 {[%clk 0:01:24]}  h6 {[%clk 0:01:07]} 27. Rde1 {[%clk 0:01:11]}  Qb6 {[%clk 0:01:05]} 28. Rd1 {[%clk 0:01:01]}  Ra5 {[%clk 0:01:03]} 29. Rde1 {[%clk 0:00:51]}  Qb5 {[%clk 0:01:02]} 30. Rd1 {[%clk 0:00:48]}  Ra4 {[%clk 0:01:03]} 31. Rde1 {[%clk 0:00:41]}  Bf8 {[%clk 0:00:49]} 32. Rd1 {[%clk 0:00:39]}  Bg7 {[%clk 0:00:49]} 33. Rde1 {[%clk 0:00:38]}  Bf8 {[%clk 0:00:35]} 34. Rd1 {[%clk 0:00:36]}  Bd6 {[%clk 0:00:23]} 35. Bxd6 {[%clk 0:00:35]}  Kxd6 {[%clk 0:00:24]} 36. Qd2 {[%clk 0:00:25]}  Rb8 {[%clk 0:00:21]} 37. Qf4+ {[%clk 0:00:23]}  Ke7 {[%clk 0:00:20]} 38. Qc7+ {[%clk 0:00:23]}  Kf8 {[%clk 0:00:19]} 39. Qd6+ {[%clk 0:00:23]}  Kg7 {[%clk 0:00:18]} 40. f4 {[%clk 0:00:22]}  Rxa2+ {[%clk 0:00:18]} 41. Kxa2 {[%clk 0:00:22]}  Qa4+ {[%clk 0:00:18]} 42. Qa3 {[%clk 0:00:21]}  Qxd1 {[%clk 0:00:18]} 43. Rg2 {[%clk 0:00:20]}  Qb3+ {[%clk 0:00:17]} 44. Qxb3 {[%clk 0:00:19]}  Rxb3 {[%clk 0:00:18]} 45. Re2 {[%clk 0:00:17]}  a5 {[%clk 0:00:16]} 46. Rf2 {[%clk 0:00:16]}  a4 {[%clk 0:00:17]} 47. Rf3 {[%clk 0:00:17]}  Kf8 {[%clk 0:00:15]} 48. Re3 {[%clk 0:00:17]}  Ke7 {[%clk 0:00:15]} 49. Rg3 {[%clk 0:00:17]}  Kd6 {[%clk 0:00:15]} 50. g5 {[%clk 0:00:18]}  fxg5 {[%clk 0:00:16]} 51. fxg5 {[%clk 0:00:18]}  hxg5 {[%clk 0:00:17]} 52. Rxg5 {[%clk 0:00:18]}  Rb8 {[%clk 0:00:18]} 53. Rg7 {[%clk 0:00:18]}  Rh8 {[%clk 0:00:19]} 54. Rxf7 {[%clk 0:00:18]}  Rxh5 {[%clk 0:00:20]} 55. Ra7 {[%clk 0:00:18]}  Rh2 {[%clk 0:00:19]} 56. Ra6+ {[%clk 0:00:17]}  Ke7 {[%clk 0:00:19]} 57. Rxa4 {[%clk 0:00:18]}  Kf6 {[%clk 0:00:20]} 58. Ra6 {[%clk 0:00:18]}  Re2 {[%clk 0:00:20]} 59. Ka3 {[%clk 0:00:17]}  Kf5 {[%clk 0:00:21]} 60. b3 {[%clk 0:00:17]}  cxb3 {[%clk 0:00:21]} 61. Kxb3 {[%clk 0:00:17]}  Re3 {[%clk 0:00:21]} 62. Ra8 {[%clk 0:00:17]}  Ke4 {[%clk 0:00:22]} 63. Kb4 {[%clk 0:00:13]}  Kd3 {[%clk 0:00:20]} 64. Ra2 {[%clk 0:00:12]}  Re1 {[%clk 0:00:19]} 65. Rb2 {[%clk 0:00:10]}  Rc1 {[%clk 0:00:19]} 66. Rb3 {[%clk 0:00:09]}  Kd2 {[%clk 0:00:17]} 67. Rb2+ {[%clk 0:00:08]}  Ke3 {[%clk 0:00:16]} 68. Rb3 {[%clk 0:00:08]}  Kd3 {[%clk 0:00:15]} 69. Ra3 {[%clk 0:00:05]}  Kc2 {[%clk 0:00:10]} 70. Kc5 {[%clk 0:00:05]}  Kb2 {[%clk 0:00:10]} 71. Ra4 {[%clk 0:00:05]}  Kxc3 {[%clk 0:00:09]} 72. Kd6 {[%clk 0:00:05]}  Re1 {[%clk 0:00:10]} 73. Kc6 {[%clk 0:00:02]}  Re4 {[%clk 0:00:08]} 74. Kd6 {[%clk 0:00:02]}  Rxd4 {[%clk 0:00:07]} 75. Ra8 {[%clk 0:00:02]}  Re4 {[%clk 0:00:07]} 76. Rc8+ {[%clk 0:00:02]}  Kd3 {[%clk 0:00:07]} 77. Ra8 {[%clk 0:00:02]}  d4 {[%clk 0:00:07]} 78. Ra4 {[%clk 0:00:02]}  Ke3 {[%clk 0:00:07]} 79. Ra3+ {[%clk 0:00:02]}  d3 {[%clk 0:00:07]} 80. Kc5 {[%clk 0:00:03]} 0-1


[Site "https://www.chess.com"]